fUSD/lending_fUSD_20250214
["ID","MTS","AMOUNT","RATE_DAILY","PERIOD"]
[353056354,1739530254966,-487.85,0.00013945,2]
[353056355,1739530254976,-485.96,0.00013945,2]
[353056356,1739530254985,-500.0,0.00013945,2]
[353056357,1739530254996,-500.0,0.00013945,2]
[353056358,1739530255005,-596.15,0.00013945,2]
[353056359,1739530255014,-348.88,0.00013945,2]
[353056360,1739530255024,-500.0,0.00013945,2]
[353056361,1739530255033,-500.0,0.00013945,2]
[353056362,1739530255042,-500.0,0.00013945,2]
[353056363,1739530255053,-500.0,0.00013945,2]
[353056364,1739530255062,-500.0,0.00013945,2]
[353056365,1739530255071,-500.0,0.00013945,2]
[353056366,1739530255082,-500.0,0.00013945,2]
[353056367,1739530255092,-500.0,0.00013945,2]
[353056368,1739530255101,-500.0,0.00013945,2]
[353056369,1739530255111,-524.96994113,0.00013945,2]
[353056370,1739530255120,-577.24,0.00013945,2]
[353056371,1739530255130,-500.0,0.00013945,2]
[353056372,1739530255144,-500.0,0.00013945,2]
[353056373,1739530255165,-153.19034133,0.00013945,2]
[353056374,1739530255177,-500.0,0.00013945,2]
[353056375,1739530255188,-500.0,0.00013945,2]
[353056376,1739530255198,-500.0,0.00013945,2]
[353056377,1739530255207,-500.0,0.00013945,2]
[353056378,1739530255216,-5000.0,0.00014,2]
[353056379,1739530255226,-185.095459,0.00014027,2]
[353056380,1739530255236,-176.122415,0.00014027,2]
[353056381,1739530255245,-506.10275739,0.00014027,2]
[353056382,1739530255255,-583.25,0.00014027,2]
[353056383,1739530255265,-500.0,0.00014027,2]
[353056384,1739530255275,-500.0,0.00014027,2]
[353056385,1739530255284,-500.0,0.00014027,2]
[353056386,1739530255294,-455.82808132,0.00014027,2]
[353056387,1739530255303,-500.0,0.00014027,2]
[353056388,1739530255313,-500.0,0.00014027,2]
[353056389,1739530255323,-500.0,0.00014027,2]
[353056390,1739530255333,-228.18,0.00014027,2]
[353056391,1739530255343,-500.0,0.00014027,2]
[353056392,1739530255354,-600.09,0.00014027,2]
[353056393,1739530255364,-500.0,0.00014027,2]
[353056394,1739530255373,-500.0,0.00014027,2]
[353056395,1739530255383,-224.21,0.00014027,2]
[353056396,1739530255392,-500.0,0.00014027,2]
[353056397,1739530255402,-500.0,0.00014027,2]
[353056398,1739530255411,-500.0,0.00014027,2]
[353056399,1739530255420,-500.0,0.00014027,2]
[353056400,1739530255429,-331.12346908,0.00014027,2]
[353056401,1739530255439,-500.0,0.00014027,2]
[353056402,1739530255448,-500.0,0.00014027,2]
[353056403,1739530255457,-500.0,0.00014027,2]
[353056404,1739530255467,-366.89821514,0.00014027,2]
[353056405,1739530255476,-500.0,0.00014027,2]
[353056406,1739530255487,-485.77419622,0.00014027,2]
[353056407,1739530255496,-500.0,0.00014027,2]
[353056408,1739530255505,-500.0,0.00014027,2]
[353056409,1739530255515,-398.9,0.00014027,2]
[353056410,1739530255524,-500.0,0.00014027,2]
[353056411,1739530255533,-500.0,0.00014027,2]
[353056412,1739530255542,-500.0,0.00014027,2]
[353056413,1739530255551,-500.0,0.00014027,2]
[353056414,1739530255560,-500.0,0.00014027,2]
[353056415,1739530255570,-314.67,0.00014027,2]
[353056416,1739530255579,-500.0,0.00014027,2]
[353056417,1739530255592,-500.0,0.00014027,2]
[353056418,1739530255602,-500.0,0.00014027,2]
[353056419,1739530255615,-492.29516437,0.00014027,2]
[353056420,1739530255625,-500.0,0.00014027,2]
[353056421,1739530255635,-500.0,0.00014027,2]
[353056422,1739530255644,-500.0,0.00014027,2]
[353056423,1739530255653,-500.0,0.00014027,2]
[353056424,1739530255663,-240.75659976,0.00014027,2]
[353056425,1739530255674,-196.40616005,0.00014027,2]
[353056426,1739530255683,-897.17,0.00014027,2]
[353056427,1739530255694,-500.0,0.00014027,2]
[353056428,1739530255704,-4571.01,0.00014027,2]
[353056429,1739530255713,-500.0,0.00014027,2]
[353056430,1739530255723,-504.19,0.00014027,2]
[353056431,1739530255732,-500.0,0.00014027,2]
[353056432,1739530255742,-490.11613217,0.00014027,2]
[353056433,1739530255751,-238.45299713,0.00014027,2]
[353056434,1739530255761,-308.98975573,0.00014027,2]
[353056435,1739530255771,-500.0,0.00014027,2]
[353056436,1739530255781,-500.0,0.00014027,2]
[353056437,1739530255791,-500.0,0.00014027,2]
[353056438,1739530255800,-506.68,0.00014027,2]
[353056439,1739530255809,-541.06,0.00014027,2]
[353056440,1739530255819,-500.0,0.00014027,2]
[353056441,1739530255828,-500.0,0.00014027,2]
[353056442,1739530255837,-500.0,0.00014027,2]
[353056443,1739530255847,-1135.02,0.00014027,2]
[353056444,1739530255856,-1263.54,0.00014027,2]
[353056445,1739530255865,-1040.49,0.00014027,2]
[353056446,1739530255875,-500.0,0.00014027,2]
[353056447,1739530255883,-500.0,0.00014027,2]
[353056448,1739530255893,-500.0,0.00014027,2]
[353056449,1739530255903,-500.0,0.00014027,2]
[353056450,1739530255913,-282.51644033,0.00014027,2]
[353056451,1739530255923,-500.0,0.00014027,2]
[353056452,1739530255932,-500.0,0.00014027,2]
[353056453,1739530255942,-576.76,0.00014027,2]
[353056454,1739530255951,-500.0,0.00014027,2]
[353056455,1739530255960,-500.0,0.00014027,2]
[353056456,1739530255969,-500.0,0.00014027,2]
[353056457,1739530255979,-500.0,0.00014027,2]
[353056458,1739530255987,-500.0,0.00014027,2]
[353056459,1739530255997,-500.0,0.00014027,2]
[353056460,1739530256006,-500.0,0.00014027,2]
[353056461,1739530256016,-491.67,0.00014027,2]
[353056462,1739530256026,-500.0,0.00014027,2]
[353056463,1739530256036,-500.0,0.00014027,2]
[353056464,1739530256048,-163.22,0.00014027,2]
[353056465,1739530256060,-707.22,0.00014027,2]
[353056466,1739530256069,-500.0,0.00014027,2]
[353056467,1739530256079,-500.0,0.00014027,2]
[353056468,1739530256088,-235.52297522,0.00014027,2]
[353056469,1739530256097,-500.0,0.00014027,2]
[353056470,1739530256107,-500.0,0.00014027,2]
[353056471,1739530256119,-500.0,0.00014027,2]
[353056472,1739530256128,-500.0,0.00014027,2]
[353056473,1739530256143,-344.86,0.00014027,2]
[353056474,1739530256153,-500.0,0.00014027,2]
[353056475,1739530256163,-500.0,0.00014027,2]
[353056476,1739530256172,-208.49,0.00014027,2]
[353056477,1739530256183,-500.0,0.00014027,2]
[353056478,1739530256193,-500.0,0.00014027,2]
[353056479,1739530256203,-500.0,0.00014027,2]
[353056480,1739530256214,-500.0,0.00014027,2]
[353056481,1739530256223,-596.15,0.00014027,2]
[353056482,1739530256233,-500.0,0.00014027,2]
[353056483,1739530256242,-500.0,0.00014027,2]
[353056484,1739530256252,-500.0,0.00014027,2]
[353056485,1739530256262,-500.0,0.00014027,2]
[353056486,1739530256271,-500.0,0.00014027,2]
[353056487,1739530256281,-452.0,0.00014027,2]
[353056488,1739530256291,-500.0,0.00014027,2]
[353056489,1739530256301,-500.0,0.00014027,2]
[353056490,1739530256310,-500.0,0.00014027,2]
[353056491,1739530256320,-500.0,0.00014027,2]
[353056492,1739530256330,-500.0,0.00014027,2]
[353056493,1739530256339,-585.04,0.00014027,2]
[353056494,1739530256348,-500.0,0.00014027,2]
[353056495,1739530256357,-500.0,0.00014027,2]
[353056496,1739530256367,-186.19,0.00014027,2]
[353056497,1739530256377,-500.0,0.00014109,2]
[353056498,1739530256388,-500.0,0.00014109,2]
[353056499,1739530256397,-500.0,0.00014109,2]
[353056500,1739530256407,-500.0,0.00014109,2]
[353056501,1739530256416,-500.0,0.00014109,2]
[353056502,1739530256425,-342.87068,0.00014109,2]
[353056503,1739530256435,-500.0,0.00014109,2]
[353056504,1739530256445,-500.0,0.00014109,2]
[353056505,1739530256455,-500.0,0.00014109,2]
[353056506,1739530256464,-500.0,0.00014109,2]
[353056507,1739530256473,-500.0,0.00014109,2]
[353056508,1739530256483,-500.0,0.00014109,2]
[353056509,1739530256492,-500.0,0.00014109,2]
[353056510,1739530256501,-244.1,0.00014109,2]
[353056511,1739530256511,-500.0,0.00014109,2]
[353056512,1739530256519,-500.0,0.00014109,2]
[353056513,1739530256529,-500.0,0.00014109,2]
[353056514,1739530256538,-211.88801047,0.00014109,2]
[353056515,1739530256548,-500.0,0.00014109,2]
[353056516,1739530256557,-500.0,0.00014109,2]
[353056517,1739530256566,-500.0,0.00014109,2]
[353056518,1739530256576,-500.0,0.00014109,2]
[353056519,1739530256585,-380.58,0.00014109,2]
[353056520,1739530256594,-500.0,0.00014109,2]
[353056521,1739530256604,-500.0,0.00014109,2]
[353056522,1739530256613,-500.0,0.00014109,2]
[353056523,1739530256622,-169.48097289,0.00014109,2]
[353056524,1739530256631,-500.0,0.00014109,2]
[353056525,1739530256641,-897.17,0.00014109,2]
[353056526,1739530256651,-500.0,0.00014109,2]
[353056527,1739530256660,-4571.01,0.00014109,2]
[353056528,1739530256670,-326.71,0.00014109,2]
[353056529,1739530256679,-504.19,0.00014109,2]
[353056530,1739530256688,-500.0,0.00014109,2]
[353056531,1739530256700,-500.0,0.00014109,2]
[353056532,1739530256709,-500.0,0.00014109,2]
[353056533,1739530256718,-506.68,0.00014109,2]
[353056534,1739530256728,-384.58,0.00014109,2]
[353056535,1739530256737,-580.93,0.00014109,2]
[353056536,1739530256747,-500.0,0.00014109,2]
[353056537,1739530256756,-1135.02,0.00014109,2]
[353056538,1739530256766,-1263.54,0.00014109,2]
[353056539,1739530256775,-1040.49,0.00014109,2]
[353056540,1739530256785,-500.0,0.00014109,2]
[353056541,1739530256794,-500.0,0.00014109,2]
[353056542,1739530256804,-500.0,0.00014109,2]
[353056543,1739530256813,-500.0,0.00014109,2]
[353056544,1739530256823,-221.11000193,0.00014109,2]
[353056545,1739530256832,-474.24,0.00014109,2]
[353056546,1739530256841,-500.0,0.00014109,2]
[353056547,1739530256850,-576.76,0.00014109,2]
[353056548,1739530256860,-500.0,0.00014109,2]
[353056549,1739530256869,-182.55908348,0.00014109,2]
[353056550,1739530256878,-500.0,0.00014109,2]
[353056551,1739530256888,-500.0,0.00014109,2]
[353056552,1739530256897,-500.0,0.00014109,2]
[353056553,1739530256907,-500.0,0.00014109,2]
[353056554,1739530256916,-500.0,0.00014109,2]
[353056555,1739530256926,-500.0,0.00014109,2]
[353056556,1739530256935,-707.22,0.00014109,2]
[353056557,1739530257040,-500.0,0.00014109,2]
[353056558,1739530257051,-500.0,0.00014109,2]
[353056559,1739530257061,-243.12633381,0.00014109,2]
[353056560,1739530257071,-452.99,0.00014109,2]
[353056561,1739530257080,-500.0,0.00014109,2]
[353056562,1739530257090,-276.1,0.00014109,2]
[353056563,1739530257099,-500.0,0.00014109,2]
[353056564,1739530257108,-500.0,0.00014109,2]
[353056565,1739530257117,-500.0,0.00014109,2]
[353056566,1739530257127,-500.0,0.00014109,2]
[353056567,1739530257137,-500.0,0.00014109,2]
[353056568,1739530257151,-500.0,0.00014109,2]
[353056569,1739530257160,-596.15,0.00014109,2]
[353056570,1739530257170,-500.0,0.00014109,2]
[353056571,1739530257179,-500.0,0.00014109,2]
[353056572,1739530257188,-500.0,0.00014109,2]
[353056573,1739530257201,-500.0,0.00014109,2]
[353056574,1739530257211,-500.0,0.00014109,2]
[353056575,1739530257223,-500.0,0.00014109,2]
[353056576,1739530257233,-475.25,0.00014109,2]
[353056577,1739530257243,-500.0,0.00014109,2]
[353056578,1739530257252,-500.0,0.00014109,2]
[353056579,1739530257261,-226.68,0.00014109,2]
[353056580,1739530257270,-500.0,0.00014109,2]
[353056581,1739530257280,-500.0,0.00014109,2]
[353056582,1739530257289,-1000.0,0.00014153,2]
[353056583,1739530257298,-2186.15,0.0001419,2]
[353056584,1739530257308,-500.0,0.00014191,2]
[353056585,1739530257317,-500.0,0.00014191,2]
[353056586,1739530257327,-623.17322277,0.00014191,2]
[353056587,1739530257336,-500.0,0.00014191,2]
[353056588,1739530257345,-441.45,0.00014191,2]
[353056589,1739530257355,-500.0,0.00014191,2]
[353056590,1739530257365,-160.76,0.00014191,2]
[353056591,1739530257375,-500.0,0.00014191,2]
[353056592,1739530257385,-500.0,0.00014191,2]
[353056593,1739530257395,-500.0,0.00014191,2]
[353056594,1739530257404,-281.87,0.00014191,2]
[353056595,1739530257414,-500.0,0.00014191,2]
[353056596,1739530257423,-629.72,0.00014191,2]
[353056597,1739530257434,-220.95299639,0.00014191,2]
[353056598,1739530257446,-500.0,0.00014191,2]
[353056599,1739530257456,-500.0,0.00014191,2]
[353056600,1739530257465,-645.66,0.00014191,2]
[353056601,1739530257475,-500.0,0.00014191,2]
[353056602,1739530257485,-500.0,0.00014191,2]
[353056603,1739530257496,-500.0,0.00014191,2]
[353056604,1739530257506,-897.17,0.00014191,2]
[353056605,1739530257516,-500.0,0.00014191,2]
[353056606,1739530257525,-4571.01,0.00014191,2]
[353056607,1739530257535,-504.19,0.00014191,2]
[353056608,1739530257545,-500.0,0.00014191,2]
[353056609,1739530257555,-500.0,0.00014191,2]
[353056610,1739530257564,-500.0,0.00014191,2]
[353056611,1739530257574,-506.68,0.00014191,2]
[353056612,1739530257584,-500.0,0.00014191,2]
[353056613,1739530257594,-1135.02,0.00014191,2]
[353056614,1739530257603,-1263.54,0.00014191,2]
[353056615,1739530257613,-1040.49,0.00014191,2]
[353056616,1739530257623,-500.0,0.00014191,2]
[353056617,1739530257634,-500.0,0.00014191,2]
[353056618,1739530257643,-500.0,0.00014191,2]
[353056619,1739530257653,-500.0,0.00014191,2]
[353056620,1739530257662,-576.76,0.00014191,2]
[353056621,1739530257673,-500.0,0.00014191,2]
[353056622,1739530257683,-500.0,0.00014191,2]
[353056623,1739530257695,-560.47,0.00014191,2]
[353056624,1739530257705,-500.0,0.00014191,2]
[353056625,1739530257715,-500.0,0.00014191,2]
[353056626,1739530257725,-500.0,0.00014191,2]
[353056627,1739530257734,-500.0,0.00014191,2]
[353056628,1739530257744,-707.22,0.00014191,2]
[353056629,1739530257753,-500.0,0.00014191,2]
[353056630,1739530257764,-170.78,0.00014191,2]
[353056631,1739530257775,-500.0,0.00014191,2]
[353056632,1739530257784,-500.0,0.00014191,2]
[353056633,1739530257793,-500.0,0.00014191,2]
[353056634,1739530257802,-538.83,0.00014191,2]
[353056635,1739530257812,-500.0,0.00014191,2]
[353056636,1739530257821,-500.0,0.00014191,2]
[353056637,1739530257831,-500.0,0.00014191,2]
[353056638,1739530257840,-596.15,0.00014191,2]
[353056639,1739530257851,-500.0,0.00014191,2]
[353056640,1739530257860,-500.0,0.00014191,2]
[353056641,1739530257869,-500.0,0.00014191,2]
[353056642,1739530257879,-500.0,0.00014191,2]
[353056643,1739530257889,-500.0,0.00014191,2]
[353056644,1739530257898,-500.0,0.00014191,2]
[353056645,1739530257908,-500.0,0.00014191,2]
[353056646,1739530257918,-500.0,0.00014191,2]
[353056647,1739530257927,-500.0,0.00014191,2]
[353056648,1739530257936,-500.0,0.00014191,2]
[353056649,1739530257947,-5555.0,0.000142,5]
[353056650,1739530257956,-500.0,0.00014273,2]
[353056651,1739530257966,-500.0,0.00014273,2]
[353056652,1739530257975,-500.0,0.00014273,2]
[353056653,1739530257985,-241.35,0.00014273,2]
[353056654,1739530257999,-500.0,0.00014273,2]
[353056655,1739530258009,-503.6,0.00014273,2]
[353056656,1739530258019,-161.76044325,0.00014273,2]
[353056657,1739530258028,-268.29,0.00014273,2]
[353056658,1739530258038,-500.0,0.00014273,2]
[353056659,1739530258047,-498.91,0.00014273,2]
[353056660,1739530258056,-500.0,0.00014273,2]
[353056661,1739530258066,-500.0,0.00014273,2]
[353056662,1739530258076,-207.21277962,0.00014273,2]
[353056663,1739530258085,-897.17,0.00014273,2]
[353056664,1739530258094,-500.0,0.00014273,2]
[353056665,1739530258104,-4571.01,0.00014273,2]
[353056666,1739530258113,-504.19,0.00014273,2]
[353056667,1739530258123,-500.0,0.00014273,2]
[353056668,1739530258132,-500.0,0.00014273,2]
[353056669,1739530258141,-500.0,0.00014273,2]
[353056670,1739530258155,-506.68,0.00014273,2]
[353056671,1739530258164,-500.0,0.00014273,2]
[353056672,1739530258174,-1135.02,0.00014273,2]
[353056673,1739530258183,-1263.54,0.00014273,2]
[353056674,1739530258193,-1040.49,0.00014273,2]
[353056675,1739530258204,-500.0,0.00014273,2]
[353056676,1739530258214,-500.0,0.00014273,2]
[353056677,1739530258223,-500.0,0.00014273,2]
[353056678,1739530258233,-270.47,0.00014273,2]
[353056679,1739530258242,-576.76,0.00014273,2]
[353056680,1739530258252,-500.0,0.00014273,2]
[353056681,1739530258261,-500.0,0.00014273,2]
[353056682,1739530258270,-153.83,0.00014273,2]
[353056683,1739530258279,-512.41219961,0.00014273,2]
[353056684,1739530258289,-500.0,0.00014273,2]
[353056685,1739530258298,-707.22,0.00014273,2]
[353056686,1739530258308,-426.42,0.00014273,2]
[353056687,1739530258318,-469.34319039,0.00014273,2]
[353056688,1739530258327,-500.0,0.00014273,2]
[353056689,1739530258336,-500.0,0.00014273,2]
[353056690,1739530258345,-500.0,0.00014273,2]
[353056691,1739530258355,-500.0,0.00014273,2]
[353056692,1739530258365,-500.0,0.00014273,2]
[353056693,1739530258375,-596.15,0.00014273,2]
[353056694,1739530258385,-500.0,0.00014273,2]
[353056695,1739530258394,-500.0,0.00014273,2]
[353056696,1739530258404,-500.0,0.00014273,2]
[353056697,1739530258417,-500.0,0.00014273,2]
[353056698,1739530258426,-500.0,0.00014273,2]
[353056699,1739530258436,-500.0,0.00014273,2]
[353056700,1739530258447,-500.0,0.00014273,2]
[353056701,1739530258457,-500.0,0.00014273,2]
[353056702,1739530258466,-500.0,0.00014273,2]
[353056703,1739530258475,-500.0,0.00014273,2]
[353056704,1739530258484,-1369.97648582,0.00014344,2]
[353056705,1739530258493,-667.23046594,0.00014344,2]
[353056706,1739530258502,-500.0,0.00014356,2]
[353056707,1739530258511,-500.0,0.00014356,2]
[353056708,1739530258521,-500.0,0.00014356,2]
[353056709,1739530258530,-347.84,0.00014356,2]
[353056710,1739530258539,-500.0,0.00014356,2]
[353056711,1739530258549,-500.0,0.00014356,2]
[353056712,1739530258558,-500.0,0.00014356,2]
[353056713,1739530258567,-897.17,0.00014356,2]
[353056714,1739530258576,-500.0,0.00014356,2]
[353056715,1739530258586,-4571.01,0.00014356,2]
[353056716,1739530258595,-504.19,0.00014356,2]
[353056717,1739530258605,-500.0,0.00014356,2]
[353056718,1739530258614,-271.5,0.00014356,2]
[353056719,1739530258624,-500.0,0.00014356,2]
[353056720,1739530258635,-506.68,0.00014356,2]
[353056721,1739530258646,-500.0,0.00014356,2]
[353056722,1739530258655,-1135.02,0.00014356,2]
[353056723,1739530258666,-1263.54,0.00014356,2]
[353056724,1739530258676,-1040.49,0.00014356,2]
[353056725,1739530258685,-500.0,0.00014356,2]
[353056726,1739530258694,-500.0,0.00014356,2]
[353056727,1739530258704,-500.0,0.00014356,2]
[353056728,1739530258713,-576.76,0.00014356,2]
[353056729,1739530258723,-500.0,0.00014356,2]
[353056730,1739530258732,-229.46,0.00014356,2]
[353056731,1739530258742,-500.0,0.00014356,2]
[353056732,1739530258751,-707.22,0.00014356,2]
[353056733,1739530258761,-500.0,0.00014356,2]
[353056734,1739530258770,-500.0,0.00014356,2]
[353056735,1739530258779,-186.57,0.00014356,2]
[353056736,1739530258789,-500.0,0.00014356,2]
[353056737,1739530258799,-500.0,0.00014356,2]
[353056738,1739530258808,-596.15,0.00014356,2]
[353056739,1739530258817,-500.0,0.00014356,2]
[353056740,1739530258827,-500.0,0.00014356,2]
[353056741,1739530258836,-500.0,0.00014356,2]
[353056742,1739530258846,-500.0,0.00014356,2]
[353056743,1739530258855,-500.0,0.00014356,2]
[353056744,1739530258864,-500.0,0.00014356,2]
[353056745,1739530258874,-500.0,0.00014356,2]
[353056746,1739530258883,-500.0,0.00014356,2]
[353056747,1739530258892,-500.0,0.00014356,2]
[353056748,1739530258901,-500.0,0.00014356,2]
[353056749,1739530258911,-500.0,0.00014438,2]
[353056750,1739530258921,-500.0,0.00014438,2]
[353056751,1739530258931,-342.8,0.00014438,2]
[353056752,1739530258941,-500.0,0.00014438,2]
[353056753,1739530258951,-500.0,0.00014438,2]
[353056754,1739530258961,-897.17,0.00014438,2]
[353056755,1739530258971,-500.0,0.00014438,2]
[353056756,1739530258981,-4571.01,0.00014438,2]
[353056757,1739530258991,-504.19,0.00014438,2]
[353056758,1739530259001,-500.0,0.00014438,2]
[353056759,1739530259010,-500.0,0.00014438,2]
[353056760,1739530259020,-506.68,0.00014438,2]
[353056761,1739530259029,-500.0,0.00014438,2]
[353056762,1739530259038,-1135.02,0.00014438,2]
[353056763,1739530259048,-1263.54,0.00014438,2]
[353056764,1739530259149,-1040.49,0.00014438,2]
[353056765,1739530259160,-500.0,0.00014438,2]
[353056766,1739530259171,-265.73,0.00014438,2]
[353056767,1739530259182,-500.0,0.00014438,2]
[353056768,1739530259192,-576.76,0.00014438,2]
[353056769,1739530259203,-500.0,0.00014438,2]
[353056770,1739530259212,-500.0,0.00014438,2]
[353056771,1739530259224,-707.22,0.00014438,2]
[353056772,1739530259234,-500.0,0.00014438,2]
[353056773,1739530259244,-500.0,0.00014438,2]
[353056774,1739530259253,-500.0,0.00014438,2]
[353056775,1739530259263,-500.0,0.00014438,2]
[353056776,1739530259273,-596.15,0.00014438,2]
[353056777,1739530259283,-500.0,0.00014438,2]
[353056778,1739530259293,-500.0,0.00014438,2]
[353056779,1739530259303,-500.0,0.00014438,2]
[353056780,1739530259313,-500.0,0.00014438,2]
[353056781,1739530259322,-500.0,0.00014438,2]
[353056782,1739530259331,-500.0,0.00014438,2]
[353056783,1739530259342,-500.0,0.00014438,2]
[353056784,1739530259351,-500.0,0.00014438,2]
[353056785,1739530259361,-500.0,0.00014438,2]
[353056786,1739530259370,-1059.0,0.00014444,2]
[353056787,1739530259380,-500.0,0.0001452,2]
[353056788,1739530259393,-415.52,0.0001452,2]
[353056789,1739530259404,-1000.0,0.0001452,3]
[353056790,1739530259415,-151.0,0.0001452,2]
[353056791,1739530259428,-248.15,0.0001452,2]
[353056792,1739530259439,-284.39,0.0001452,2]
[353056793,1739530259450,-897.17,0.0001452,2]
[353056794,1739530259459,-151.0,0.0001452,2]
[353056795,1739530259468,-500.0,0.0001452,2]
[353056796,1739530259478,-4571.01,0.0001452,2]
[353056797,1739530259487,-504.19,0.0001452,2]
[353056798,1739530259497,-500.0,0.0001452,2]
[353056799,1739530259506,-500.0,0.0001452,2]
[353056800,1739530259516,-506.68,0.0001452,2]
[353056801,1739530259525,-500.0,0.0001452,2]
[353056802,1739530259534,-1135.02,0.0001452,2]
[353056803,1739530259544,-1263.54,0.0001452,2]
[353056804,1739530259553,-1040.49,0.0001452,2]
[353056805,1739530259562,-500.0,0.0001452,2]
[353056806,1739530259571,-500.0,0.0001452,2]
[353056807,1739530259580,-576.76,0.0001452,2]
[353056808,1739530259590,-500.0,0.0001452,2]
[353056809,1739530259599,-500.0,0.0001452,2]
[353056810,1739530259608,-707.22,0.0001452,2]
[353056811,1739530259617,-500.0,0.0001452,2]
[353056812,1739530259627,-177.72,0.0001452,2]
[353056813,1739530259636,-500.0,0.0001452,2]
[353056814,1739530259645,-500.0,0.0001452,2]
[353056815,1739530259655,-151.0,0.0001452,2]
[353056816,1739530259664,-596.15,0.0001452,2]
[353056817,1739530259673,-500.0,0.0001452,2]
[353056818,1739530259683,-500.0,0.0001452,2]
[353056819,1739530259692,-500.0,0.0001452,2]
[353056820,1739530259702,-500.0,0.0001452,2]
[353056821,1739530259711,-500.0,0.0001452,2]
[353056822,1739530259720,-500.0,0.0001452,2]
[353056823,1739530259730,-500.0,0.0001452,2]
[353056824,1739530259739,-393.80767627,0.0001452,2]
[353056825,1739530259748,-500.0,0.0001452,2]
[353056826,1739530259757,-500.0,0.00014602,2]
[353056827,1739530259766,-897.17,0.00014602,2]
[353056828,1739530259776,-500.0,0.00014602,2]
[353056829,1739530259785,-4571.01,0.00014602,2]
[353056830,1739530259795,-504.19,0.00014602,2]
[353056831,1739530259803,-500.0,0.00014602,2]
[353056832,1739530259813,-500.0,0.00014602,2]
[353056833,1739530259823,-506.68,0.00014602,2]
[353056834,1739530259832,-500.0,0.00014602,2]
[353056835,1739530259841,-1135.02,0.00014602,2]
[353056836,1739530259850,-1263.54,0.00014602,2]
[353056837,1739530259860,-1040.49,0.00014602,2]
[353056838,1739530259869,-500.0,0.00014602,2]
[353056839,1739530259878,-500.0,0.00014602,2]
[353056840,1739530259887,-576.76,0.00014602,2]
[353056841,1739530259897,-500.0,0.00014602,2]
[353056842,1739530259907,-500.0,0.00014602,2]
[353056843,1739530259916,-707.22,0.00014602,2]
[353056844,1739530259925,-500.0,0.00014602,2]
[353056845,1739530259934,-500.0,0.00014602,2]
[353056846,1739530259943,-500.0,0.00014602,2]
[353056847,1739530259954,-596.15,0.00014602,2]
[353056848,1739530259963,-500.0,0.00014602,2]
[353056849,1739530259972,-500.0,0.00014602,2]
[353056850,1739530259982,-500.0,0.00014602,2]
[353056851,1739530259991,-500.0,0.00014602,2]
[353056852,1739530260000,-385.69,0.00014602,2]
[353056853,1739530260009,-500.0,0.00014602,2]